[Event "FRA-ch Youth U14 2019"]
[Site "Hyeres"]
[Date "2019.04.15"]
[Round "3.2"]
[White "Verhille, Elie"]
[Black "Mathieu, Phileas"]
[Result "1-0"]
[ECO "B51"]
[WhiteElo "1960"]
[BlackElo "2105"]
[Annotator "NA"]
[PlyCount "185"]
[EventDate "2019.04.14"]
[EventType "swiss"]
[EventCountry "FRA"]
[SourceTitle "playchess.com"]
[Source "ChessBase"]
[SourceQuality "1"]
[TimeControl "5400+30"]

1. e4 {[%emt 0:00:00]} c5 {[%emt 0:00:00]} 2. Nf3 {[%emt 0:00:00]} Nc6 {[%emt 0:00:00]} 3. Bb5 {[%emt 0:00:00]} d6 {[%emt 0:00:00]} 4. O-O {[%emt 0:00:00]} Nf6 {[%emt 0:00:47]} 5. Re1 {[%emt 0:00:30]} Bd7 {[%emt 0:01:12]} 6. c3 {[%emt 0:00:22]} a6 {[%emt 0:00:12]} 7. Bf1 {[%emt 0:00:11]} Bg4 {[%emt 0:00:12]} 8. h3 {[%emt 0:00:11]} Bh5 {[%emt 0:01:03]} 9. g4 {[%emt 0:03:27]} Bg6 {[%emt 0:00:14]} 10. d4 {[%emt 0:00:18]} e5 {[%emt 0:18:30]} 11. Bg2 {[%emt 0:08:48]} Be7 {[%emt 0:02:04]} 12. dxe5 {[%emt 0:05:21]} Nxe4 {[%emt 0:11:13]} (12... dxe5 $14 13. Nbd2 O-O) 13. exd6 {[%emt 0:06:04]} Qxd6 {[%emt 0:10:07]} 14. Qxd6 {[%emt 0:01:50]} Nxd6 {[%emt 0:02:35]} 15. Bf4 {[%emt 0:03:32]} O-O-O $2 {[%emt 0:00:47]} (15... Nc4 $1 $11) 16. Nbd2 $16 {[%emt 0:02:27]} ({White should play} 16. Ne5 $18 Nxe5 17. Rxe5 {[%mdl 64] Double Attack}) 16... Rhe8 {[%emt 0:01:46]} 17. a4 {[%emt 0:02:31]} Bd3 {[%emt 0:10:49]} 18. Ne5 {[%emt 0:07:16]} Nxe5 {[%emt 0:00:23]} 19. Rxe5 {[%emt 0:00:25]} Nc4 {[%emt 0:05:51]} 20. Nxc4 {[%emt 0:02:15]} Bxc4 {[%emt 0:00:01]} 21. Rae1 {[%emt 0:01:47]} Be6 {[%emt 0:01:45]} 22. Bg5 {[%emt 0:03:38]} h6 {[%emt 0:19:19]} 23. Bxe7 {[%emt 0:03:09]} Rxe7 {[%emt 0:00:01]} 24. Rxc5+ {[%emt 0:00:06]} Rc7 {[%emt 0:00:03]} 25. Rxc7+ Kxc7 {[%emt 0:00:01]} 26. f4 {[%emt 0:08:35]} Rd7 {[%emt 0:02:44]} 27. b4 {[%emt 0:04:02]} b6 {[%emt 0:04:10]} 28. f5 {[%emt 0:05:04]} Bc4 {[%emt 0:03:49]} 29. Bf1 {[%emt 0:00:53]} Bxf1 {[%emt 0:02:01]} 30. Kxf1 {[%emt 0:00:28]} Kc6 {[%emt 0:00:02]} 31. Ke2 {[%emt 0:03:46]} g6 {[%emt 0:01:53]} 32. Kf3 {[%emt 0:04:24]} gxf5 {[%emt 0:00:45]} 33. gxf5 {[%emt 0:00:02]} a5 {[%emt 0:01:09]} 34. Re3 {[%emt 0:01:14]} axb4 {[%emt 0:00:44]} 35. cxb4 Ra7 36. b5+ {[%emt 0:04:37]} Kd5 {[%emt 0:00:14]} 37. Re4 {[%emt 0:04:19]} Ra8 {[%emt 0:01:14]} 38. Ke3 {[%emt 0:04:40]} Ra7 {[%emt 0:00:16]} 39. Kd3 {[%emt 0:00:59]} Ra8 {[%emt 0:00:15]} 40. Rh4 {[%emt 0:01:03]} Ke5 {[%emt 0:01:06]} 41. Rxh6 {[%emt 0:00:51]} Rxa4 {[%emt 0:00:11]} 42. Rxb6 {[%emt 0:00:23]} Kxf5 {[%emt 0:00:56]} 43. Rb8 {[%emt 0:00:50]} Ke6 {[%emt 0:00:19]} 44. Kc3 {[%emt 0:03:17]} Rh4 {[%emt 0:00:38]} 45. Rc8 {[%emt 0:02:13]} Kd7 {[%emt 0:00:28]} 46. Rc4 {[%emt 0:00:10]} Rxh3+ {[%emt 0:00:14]} 47. Kb4 {[%emt 0:00:20]} Rh1 {[%emt 0:00:38]} 48. b6 {[%emt 0:00:18]} Ra1 {[%emt 0:00:43]} 49. Kb5 {[%emt 0:00:44]} f5 {[%emt 0:00:33]} 50. b7 {[%emt 0:00:42]} Rb1+ {[%emt 0:00:05]} 51. Ka6 {[%emt 0:00:26]} Ra1+ {[%emt 0:00:27]} 52. Kb6 {[%emt 0:00:13]} Rb1+ {[%emt 0:00:06]} 53. Ka7 {[%emt 0:00:05]} Ra1+ {[%emt 0:00:11]} 54. Kb8 {[%emt 0:00:06]} Rb1 {[%emt 0:01:31]} 55. Rf4 {[%emt 0:00:22]} Ke6 {[%emt 0:00:37]} 56. Kc7 {[%emt 0:00:35]} Ke5 {[%emt 0:00:09]} 57. Rf1 {[%emt 0:05:22]} Rxf1 {[%emt 0:00:54]} 58. b8=Q {[%emt 0:00:03]} Rf3 {[%emt 0:00:29]} 59. Kd7+ {[%emt 0:00:34]} Ke4 {[%emt 0:00:30]} 60. Ke6 {[%emt 0:01:13]} Ke3 {[%emt 0:00:23]} 61. Qe5+ {[%emt 0:00:43]} Kf2 {[%emt 0:00:02]} 62. Qh2+ {[%emt 0:00:09]} Kf1 {[%emt 0:00:48]} 63. Qh1+ {[%emt 0:00:40]} Kf2 {[%emt 0:00:05]} 64. Ke5 {[%emt 0:00:45]} Ke2 {[%emt 0:00:55]} 65. Qh5 {[%emt 0:01:06]} Kf2 {[%emt 0:00:12]} 66. Qh6 {[%emt 0:01:45]} Kg2 {[%emt 0:00:26]} 67. Qg7+ {[%emt 0:00:17]} Kf2 {[%emt 0:00:12]} 68. Qa7+ {[%emt 0:00:06]} Kg2 {[%emt 0:00:22]} 69. Qd4 {[%emt 0:00:29]} Kh2 {[%emt 0:01:09]} 70. Qd2+ {[%emt 0:00:36]} Kg3 {[%emt 0:00:35]} 71. Qd1 {[%emt 0:00:09]} Kg2 {[%emt 0:00:11]} 72. Qe1 {[%emt 0:00:36]} Kh2 {[%emt 0:00:50]} 73. Qe2+ {[%emt 0:00:24]} Kg3 {[%emt 0:00:13]} 74. Qd2 {[%emt 0:00:14]} Kh3 {[%emt 0:00:46]} 75. Qc2 {[%emt 0:00:10]} Kg3 {[%emt 0:00:25]} 76. Qe2 {[%emt 0:00:26]} Rf2 {[%emt 0:00:53]} 77. Qe3+ {[%emt 0:00:16]} Kg2 {[%emt 0:00:24]} 78. Qg5+ {[%emt 0:00:10]} Kh3 {[%emt 0:00:20]} 79. Kf6 {[%emt 0:00:29]} Rf3 {[%emt 0:00:33]} 80. Qg1 {[%emt 0:00:32]} Kh4 {[%emt 0:00:46]} 81. Qg2 {[%emt 0:00:38]} Rg3 {[%emt 0:00:31]} 82. Qf2 {[%emt 0:00:17]} Kh3 {[%emt 0:00:29]} 83. Qxf5+ {[%emt 0:00:37]} Kg2 {[%emt 0:00:20]} 84. Qe4+ {[%emt 0:00:39]} Kh2 {[%emt 0:00:26]} 85. Kf5 {[%emt 0:00:20]} Kg1 {[%emt 0:00:41]} 86. Kf4 {[%emt 0:00:13]} Rg2 {[%emt 0:00:01]} 87. Kf3 {[%emt 0:00:11]} Kh2 {[%emt 0:00:35]} 88. Qh7+ {[%emt 0:00:16]} Kg1 {[%emt 0:00:05]} 89. Qh4 {[%emt 0:00:06]} Ra2 {[%emt 0:01:05]} 90. Qg5+ {[%emt 0:00:46]} Kh1 {[%emt 0:00:17]} 91. Qh6+ {[%emt 0:00:13]} Kg1 {[%emt 0:00:18]} 92. Qg6+ {[%emt 0:00:09]} Kh2 {[%emt 0:00:17]} 93. Qh7+ {[%emt 0:05:02]} 1-0

[Event "FRA-ch Youth U14 2019"]
[Site "Hyeres"]
[Date "2019.04.15"]
[Round "3.3"]
[White "Droin, Augustin"]
[Black "Emmenecker, Pierre-Antoine"]
[Result "1-0"]
[ECO "C65"]
[WhiteElo "2088"]
[BlackElo "1950"]
[Annotator "NA"]
[PlyCount "105"]
[EventDate "2019.04.14"]
[EventType "swiss"]
[EventCountry "FRA"]
[SourceTitle "playchess.com"]
[Source "ChessBase"]
[SourceQuality "1"]
[TimeControl "5400+30"]

1. e4 {[%emt 1:30:30]} e5 {[%emt 0:00:44]} 2. Nf3 {[%emt 0:00:00]} Nc6 {[%emt 0:00:05]} 3. Bb5 {[%emt 0:00:00]} Bc5 {[%emt 0:00:05]} 4. O-O {[%emt 0:00:00]} Nd4 {[%emt 0:00:01]} 5. Nxd4 {[%emt 0:00:00]} Bxd4 {[%emt 0:00:02]} 6. d3 {[%emt 0:00:00]} Nf6 {[%emt 0:07:44]} 7. Nd2 {[%emt 0:00:00] C65: Ruy Lopez: Berlin Defence (3...Nf6), unusual lines and 4 0-0 Bc5} (7. c3 Bb6 8. Ba4 O-O 9. Bg5 h6 10. Bh4 d6 11. Nd2 g5 12. Bg3 Bg4 13. Qe1 Nh5 14. Bd1 Bxd1 15. Qxd1 Nxg3 16. hxg3 {½-½ (47) Caruana,F (2828)-Robson,R (2667) chess.com INT 2019}) 7... c6 {[%emt 0:02:16]} 8. Ba4 {[%emt 0:00:00]} d6 {[%emt 0:01:56] LiveBook: 55 Games} 9. h3 {[%emt 0:00:00]} h6 {[%emt 0:03:25]} 10. c3 {[%emt 0:00:00]} Bb6 {[%emt 0:00:01]} 11. Nc4 {[%emt 0:00:00]} Bc7 {[%emt 0:01:15]} 12. Bc2 $146 {[%emt 0:00:00]} ({Predecessor:} 12. Ne3 O-O 13. Qf3 d5 14. Bc2 d4 {½-½ (44) Martin Perez,L (2212)-Martin Dinares,S (2077) Platja d'Aro 2015}) 12... Be6 {[%emt 0:05:43]} 13. Ne3 {[%emt 0:00:00]} d5 {[%emt 0:01:37]} 14. Qf3 {[%emt 0:00:00]} Qd7 {[%emt 0:05:20]} 15. Ba4 {[%emt 0:00:00]} O-O-O {[%emt 0:06:54]} 16. Rd1 $15 {[%emt 0:00:00]} Qe7 {[%emt 0:17:04]} 17. Nf5 {[%emt 0:00:00]} Bxf5 {[%emt 0:04:59]} 18. Qxf5+ {[%emt 0:00:00]} Kb8 {[%emt 0:02:19]} 19. b4 {[%emt 0:00:00]} d4 {[%emt 0:04:32]} 20. Bd2 {[%emt 0:00:00]} dxc3 {[%emt 0:03:44]} 21. Bxc3 {[%emt 0:00:00]} g6 {[%emt 0:00:37]} 22. Qf3 {[%emt 0:00:00]} Bb6 {[%emt 0:01:18]} 23. Rac1 {[%emt 0:00:00]} Bd4 {[%emt 0:01:14]} 24. a3 {[%emt 0:00:00]} Bxc3 {[%emt 0:04:00]} 25. Rxc3 {[%emt 0:00:00]} Rd4 {[%emt 0:00:02]} 26. Bb3 {[%emt 0:00:00]} Rhd8 {[%emt 0:01:03]} 27. g3 {[%emt 0:00:00]} R4d7 {[%emt 0:05:27]} 28. Qe3 {[%emt 0:00:00]} h5 {[%emt 0:01:48]} 29. Kg2 {[%emt 0:00:00]} Ne8 {[%emt 0:00:28]} 30. f4 {[%emt 0:00:00]} Nd6 {[%emt 0:02:28]} 31. Rc5 {[%emt 0:00:00]} exf4 {[%emt 0:02:08]} 32. Qxf4 {[%emt 0:00:00]} Ka8 {[%emt 0:02:19]} 33. Re5 {[%emt 0:00:00]} Qf8 {[%emt 0:00:01]} 34. Rf1 {[%emt 0:00:00]} Nb5 {[%emt 0:03:14]} 35. Bxf7 {[%emt 0:00:00]} Rxd3 {[%emt 0:00:52]} 36. Rf2 {[%emt 0:00:00]} Nxa3 {[%emt 0:01:33]} 37. Bxg6 {[%emt 0:00:00]} Qxb4 {[%emt 0:00:21]} 38. Rxh5 {[%emt 0:00:00]} Nc4 {[%emt 0:01:24]} 39. e5 {[%emt 0:06:49]} Rd1 {[%emt 0:00:50]} 40. h4 {[%emt 0:01:30]} Qe1 {[%emt 0:00:36]} 41. Kh3 {[%emt 0:00:38]} Ne3 {[%emt 0:02:52]} 42. Be4 {[%emt 0:00:33]} Nd5 {[%emt 0:05:03]} 43. Bxd5 {[%emt 0:00:37]} R1xd5 {[%emt 0:00:30]} 44. Qf6 {[%emt 0:03:26]} Qh1+ {[%emt 0:00:53]} 45. Rh2 {[%emt 0:00:14]} Qd1 {[%emt 0:00:56]} 46. Rh8 {[%emt 0:00:18]} Rxh8 {[%emt 0:00:36]} 47. Qxh8+ {[%emt 0:08:55]} Rd8 {[%emt 0:00:02]} 48. Qf6 {[%emt 0:00:00]} Re8 {[%emt 0:01:39]} 49. Qf7 {[%emt 0:00:00]} Qd8 {[%emt 0:00:00]} 50. e6 {[%emt 0:00:00]} Re7 {[%emt 0:00:21]} 51. Rd2 {[%emt 0:00:00]} Qe8 {[%emt 0:00:13]} 52. Qxe8+ {[%emt 0:00:00]} Rxe8 {[%emt 0:00:04]} 53. e7 {[%emt 0:00:00]} 1-0

[Event "FRA-ch Youth U14 2019"]
[Site "Hyeres"]
[Date "2019.04.15"]
[Round "3.4"]
[White "Durup De Baleine, Come"]
[Black "Roux, Baptiste"]
[Result "0-1"]
[ECO "B23"]
[WhiteElo "1421"]
[BlackElo "2054"]
[Annotator "NA RC"]
[PlyCount "58"]
[EventDate "2019.04.14"]
[EventType "swiss"]
[EventCountry "FRA"]
[SourceTitle "playchess.com"]
[Source "ChessBase"]
[SourceQuality "1"]
[TimeControl "5400+30"]

1. e4 {[%emt 0:00:00]} c5 {[%emt 0:00:24]} 2. Nc3 {[%emt 0:00:00]} Nc6 {[%emt 0:00:22]} 3. f4 {[%emt 0:00:11]} g6 {[%emt 0:00:36]} 4. Nf3 {[%emt 0:00:30]} Bg7 {[%emt 0:00:06]} 5. Bc4 {[%emt 0:00:23]} e6 {[%emt 0:00:42]} 6. d3 {[%emt 0:00:15]} Nge7 {[%emt 0:00:19]} 7. O-O {[%emt 0:00:21]} O-O {[%emt 0:01:38]} 8. Qe1 {[%emt 0:00:37]} Nd4 {[%emt 0:00:21]} 9. Nxd4 {[%emt 0:01:14]} cxd4 {[%emt 0:00:06]} 10. Ne2 {[%emt 0:00:45]} d5 {[%emt 0:00:48]} 11. Bb3 {[%emt 0:00:44]} a5 {[%emt 0:02:52] B23: Closed Sicilian: Lines without g3} (11... b5 12. Qf2 dxe4 13. dxe4 Qb6 14. Bd2 Bb7 15. Ng3 Bh6 16. Rad1 b4 17. c3 bxc3 18. bxc3 dxc3 19. Bxc3 Qxf2+ 20. Rxf2 {½-½ (59) Fritsche,L (2303)-Schweitzer,A (2239) Dresden 2018}) 12. a4 {[%emt 0:02:48]} dxe4 {[%emt 0:02:26]} 13. dxe4 {[%emt 0:01:25]} d3 {[%emt 0:01:18]} 14. cxd3 $146 {[%emt 0:03:32]} ({Predecessor:} 14. Nc3 Nc6 15. Nb5 Nd4 16. Nxd4 Qxd4+ 17. Kh1 Bd7 18. cxd3 Qxd3 19. Rf3 {0-1 (26) Bassani,J (2041)-Da Silva,L (2182) Sao Paulo 2018}) 14... Qb6+ {[%emt 0:00:16]} 15. Kh1 {[%emt 0:00:48]} Qxb3 {[%emt 0:00:16]} 16. Qh4 {[%emt 0:00:47]} Qxd3 {[%emt 0:01:21]} 17. Ng3 {[%emt 0:07:33]} Nc6 {[%emt 0:02:15]} 18. Ra3 {[%emt 0:00:37]} Qd8 {[%emt 0:00:39]} 19. Qh3 {[%emt 0:00:43]} f5 {[%emt 0:00:50]} 20. Be3 {[%emt 0:03:16]} b6 {[%emt 0:01:38]} 21. Ne2 {[%emt 0:01:31]} Ba6 {[%emt 0:01:14]} 22. exf5 {[%emt 0:07:37]} exf5 {[%emt 0:00:47]} 23. Nd4 {[%emt 0:01:55]} Nxd4 {[%emt 0:01:52]} 24. Rd1 {[%emt 0:00:51]} Qe7 {[%emt 0:01:31]} 25. Bxd4 {[%emt 0:01:58]} Bxd4 {[%emt 0:00:14]} 26. g4 {[%emt 0:01:04]} Bb7+ {[%emt 0:00:25]} 27. Rf3 {[%emt 0:00:47]} Qe2 {[%emt 0:01:28] Pin} 28. Rdf1 {[%emt 0:01:14]} fxg4 {[%emt 0:00:20]} 29. Qxg4 {[%emt 0:00:58]} Qxf1+ {[%emt 0:00:10]} 0-1

[Event "FRA-ch Youth U14 2019"]
[Site "Hyeres"]
[Date "2019.04.16"]
[Round "4.1"]
[White "Candelot, Clement"]
[Black "Droin, Augustin"]
[Result "0-1"]
[ECO "B22"]
[WhiteElo "1875"]
[BlackElo "2088"]
[Annotator "NA"]
[PlyCount "90"]
[EventDate "2019.04.14"]
[EventType "swiss"]
[EventCountry "FRA"]
[SourceTitle "playchess.com"]
[Source "ChessBase"]
[SourceQuality "1"]
[TimeControl "5400+30"]

1. e4 {[%emt 0:00:00]} c5 {[%emt 0:00:00]} 2. d4 {[%emt 0:00:59]} cxd4 {[%emt 0:00:54]} 3. c3 {[%emt 0:00:41]} Nf6 {[%emt 0:00:42]} 4. e5 {[%emt 0:01:07]} Nd5 {[%emt 0:00:08]} 5. Nf3 {[%emt 0:00:50]} Nc6 {[%emt 0:02:36]} 6. Bc4 {[%emt 0:01:10]} Nb6 {[%emt 0:00:09]} 7. Bb3 {[%emt 0:00:34]} d6 {[%emt 0:00:56]} 8. exd6 {[%emt 0:02:30]} e6 {[%emt 0:00:53]} 9. cxd4 {[%emt 0:09:10]} Bxd6 {[%emt 0:00:29]} 10. O-O {[%emt 0:00:54]} O-O {[%emt 0:02:45]} 11. Nc3 {[%emt 0:02:26]} Nb4 {[%emt 0:04:11]} 12. a3 {[%emt 0:04:07]} N4d5 {[%emt 0:00:27]} 13. Bc2 {[%emt 0:01:50]} Nxc3 {[%emt 0:17:59]} 14. bxc3 {[%emt 0:01:36]} Qc7 {[%emt 0:03:00]} 15. Qd3 {[%emt 0:10:51]} g6 {[%emt 0:00:12]} 16. Bb3 {[%emt 0:09:37]} Nd7 {[%emt 0:06:01]} 17. Bh6 {[%emt 0:05:29]} Rd8 {[%emt 0:01:15]} 18. Bg5 {[%emt 0:00:27]} Re8 {[%emt 0:03:59]} 19. h4 {[%emt 0:03:28]} b6 {[%emt 0:04:59]} 20. h5 {[%emt 0:04:15]} Bb7 {[%emt 0:00:34]} 21. hxg6 {[%emt 0:04:11]} hxg6 {[%emt 0:00:22]} 22. Nd2 {[%emt 0:07:32]} Bh2+ {[%emt 0:02:46]} 23. Kh1 {[%emt 0:00:59]} Bf4 {[%emt 0:00:08]} 24. Bxf4 {[%emt 0:03:21]} Qxf4 {[%emt 0:00:14]} 25. Qe3 {[%emt 0:01:04]} Qh4+ {[%emt 0:00:49]} 26. Kg1 {[%emt 0:01:29]} Kg7 {[%emt 0:02:06]} 27. f3 {[%emt 0:02:11]} Nf6 {[%emt 0:03:23]} 28. Qe5 {[%emt 0:02:04]} Rh8 {[%emt 0:01:45]} 29. Ne4 {[%emt 0:06:39]} Bxe4 {[%emt 0:00:39]} 30. fxe4 {[%emt 0:00:15]} Rh5 {[%emt 0:00:20]} 31. Qxf6+ {[%emt 0:05:09]} Qxf6 {[%emt 0:00:05]} 32. Rxf6 {[%emt 0:00:05]} Kxf6 {[%emt 0:00:04]} 33. Rf1+ {[%emt 0:00:20]} Ke7 {[%emt 0:00:11]} 34. Rf3 {[%emt 0:00:39]} Ra5 {[%emt 0:01:11]} 35. a4 {[%emt 0:00:17]} b5 {[%emt 0:00:06]} 36. axb5 {[%emt 0:00:31]} Rxb5 {[%emt 0:00:04]} 37. c4 {[%emt 0:00:20]} Rb4 {[%emt 0:00:15]} 38. e5 {[%emt 0:00:27]} a5 {[%emt 0:02:28]} 39. d5 {[%emt 0:00:20]} a4 {[%emt 0:00:22]} 40. Ba2 {[%emt 0:00:20]} Rb2 {[%emt 0:00:45]} 41. d6+ {[%emt 0:00:18]} Ke8 {[%emt 0:00:23]} 42. Rh3 {[%emt 0:00:50]} Kd7 {[%emt 0:01:09]} 43. Ra3 {[%emt 0:00:09]} Ra5 {[%emt 0:00:17]} 44. c5 {[%emt 0:00:37]} Rxc5 {[%emt 0:03:21]} 45. Rxa4 {[%emt 0:00:11]} Rxe5 {[%emt 0:00:12]} 0-1

[Event "FRA-ch Youth U14 2019"]
[Site "Hyeres"]
[Date "2019.04.16"]
[Round "4.2"]
[White "Roux, Baptiste"]
[Black "Bottazzi, Ulysse"]
[Result "1-0"]
[ECO "B23"]
[WhiteElo "2054"]
[BlackElo "1967"]
[Annotator "NA"]
[PlyCount "65"]
[EventDate "2019.04.14"]
[EventType "swiss"]
[EventCountry "FRA"]
[SourceTitle "playchess.com"]
[Source "ChessBase"]
[SourceQuality "1"]
[TimeControl "5400+30"]

1. e4 {[%emt 0:00:00]} c5 {[%emt 0:00:00]} 2. Nc3 {[%emt 0:00:14]} Nc6 {[%emt 0:00:17]} 3. Bb5 {[%emt 0:00:29]} Nd4 {[%emt 0:01:01]} 4. Nf3 {[%emt 0:00:13]} g6 {[%emt 0:06:07]} 5. Nxd4 {[%emt 0:01:38]} cxd4 {[%emt 0:00:14]} 6. Ne2 {[%emt 0:00:20]} Bg7 {[%emt 0:01:03]} 7. O-O {[%emt 0:00:58]} e6 {[%emt 0:06:43]} 8. f4 {[%emt 0:15:17]} Ne7 {[%emt 0:01:17]} 9. d3 {[%emt 0:04:25]} O-O {[%emt 0:03:17]} 10. Ng3 {[%emt 0:04:30]} d5 {[%emt 0:11:03]} 11. e5 {[%emt 0:05:06]} Qa5 {[%emt 0:01:52]} 12. c4 {[%emt 0:02:33]} dxc3 {[%emt 0:01:12]} 13. Ba4 {[%emt 0:00:20]} cxb2 {[%emt 0:00:48]} 14. Bxb2 {[%emt 0:00:07]} b5 {[%emt 0:08:16]} 15. Bb3 {[%emt 0:01:02]} Qb6+ {[%emt 0:00:51]} 16. d4 {[%emt 0:01:33]} a5 {[%emt 0:01:58]} 17. Rb1 {[%emt 0:03:13]} Ba6 {[%emt 0:01:59]} 18. Rf3 {[%emt 0:03:40]} Rac8 {[%emt 0:03:29]} 19. Ne2 {[%emt 0:06:32]} b4 {[%emt 0:07:18]} 20. g4 {[%emt 0:02:20]} Rc7 {[%emt 0:12:35]} 21. Kg2 {[%emt 0:05:22]} Rfc8 {[%emt 0:02:48]} 22. Ng3 {[%emt 0:01:36]} Bc4 {[%emt 0:00:30]} 23. f5 {[%emt 0:02:03]} Bxb3 {[%emt 0:00:23]} 24. axb3 {[%emt 0:00:10]} Rc2+ {[%emt 0:00:33]} 25. Kh1 {[%emt 0:00:02]} exf5 {[%emt 0:00:53]} 26. gxf5 {[%emt 0:00:20]} Nxf5 {[%emt 0:00:29]} 27. Nxf5 {[%emt 0:00:20]} gxf5 {[%emt 0:00:07]} 28. Qd3 {[%emt 0:01:01]} Qh6 {[%emt 0:01:59]} 29. Rh3 {[%emt 0:00:26]} Qd2 {[%emt 0:01:02]} 30. Qg3 {[%emt 0:00:28]} Rxb2 {[%emt 0:00:16]} 31. Rg1 {[%emt 0:00:11]} Kf8 {[%emt 0:03:03]} 32. Qxg7+ {[%emt 0:00:07]} Ke8 {[%emt 0:01:53]} 33. Rxh7 {[%emt 0:01:17]} 1-0

[Event "FRA-ch Youth U14 2019"]
[Site "Hyeres"]
[Date "2019.04.16"]
[Round "4.3"]
[White "Gresser, Baptiste"]
[Black "Auroux, William"]
[Result "0-1"]
[ECO "B08"]
[WhiteElo "1574"]
[BlackElo "1983"]
[Annotator "NA"]
[PlyCount "72"]
[EventDate "2019.04.14"]
[EventType "swiss"]
[EventCountry "FRA"]
[SourceTitle "playchess.com"]
[Source "ChessBase"]
[SourceQuality "1"]
[TimeControl "5400+30"]

1. e4 {[%emt 0:00:00]} g6 {[%emt 0:00:00]} 2. d4 {[%emt 0:00:45]} Bg7 {[%emt 0:00:00]} 3. Nc3 {[%emt 0:02:14]} d6 {[%emt 0:00:00]} 4. Bc4 {[%emt 0:03:33]} Nf6 {[%emt 0:01:09]} 5. Bg5 {[%emt 0:09:09]} O-O {[%emt 0:02:31]} 6. Nf3 {[%emt 0:02:23]} Nc6 {[%emt 0:03:23]} 7. Qd2 {[%emt 0:02:26]} Nxe4 {[%emt 0:06:51]} 8. Nxe4 {[%emt 0:17:41]} d5 {[%emt 0:00:18]} 9. Bd3 {[%emt 0:01:09]} dxe4 {[%emt 0:00:59]} 10. Bxe4 {[%emt 0:00:43]} Re8 {[%emt 0:08:21]} 11. O-O-O {[%emt 0:04:23]} Bg4 {[%emt 0:06:03]} 12. c3 {[%emt 0:05:51]} a5 {[%emt 0:03:30]} 13. h3 {[%emt 0:01:50]} Bxf3 {[%emt 0:00:59]} 14. Bxf3 {[%emt 0:09:34]} Qd7 {[%emt 0:06:52]} 15. Bh6 {[%emt 0:06:41]} Rad8 {[%emt 0:06:05]} 16. Bxg7 {[%emt 0:01:21]} Kxg7 {[%emt 0:00:10]} 17. h4 {[%emt 0:02:58]} h6 {[%emt 0:24:55]} 18. Rh3 {[%emt 0:08:44]} e5 {[%emt 0:05:09]} 19. h5 {[%emt 0:04:46]} g5 {[%emt 0:01:02]} 20. d5 {[%emt 0:03:47]} Ne7 {[%emt 0:03:03]} 21. Qe2 {[%emt 0:04:46]} Nc8 {[%emt 0:02:46]} 22. Rhh1 {[%emt 0:02:48]} e4 {[%emt 0:06:40]} 23. Bg4 {[%emt 0:02:41]} f5 {[%emt 0:00:13]} 24. Bh3 {[%emt 0:00:41]} g4 {[%emt 0:00:30]} 25. Bxg4 {[%emt 0:00:39]} fxg4 {[%emt 0:00:02]} 26. Rh4 {[%emt 0:00:02]} Nd6 {[%emt 0:03:04]} 27. Rxg4+ {[%emt 0:00:11]} Kh7 {[%emt 0:00:42]} 28. Rg6 {[%emt 0:01:00]} Rg8 {[%emt 0:00:56]} 29. Rh1 {[%emt 0:00:47]} Qf5 {[%emt 0:01:30]} 30. Re6 {[%emt 0:00:55]} Rd7 {[%emt 0:01:31]} 31. Qe3 {[%emt 0:00:29]} Qg5 {[%emt 0:01:28]} 32. Qxg5 {[%emt 0:00:17]} Rxg5 {[%emt 0:00:08]} 33. g3 {[%emt 0:00:11]} Rxd5 {[%emt 0:00:14]} 34. Rh4 {[%emt 0:00:15]} Rf7 {[%emt 0:00:58]} 35. Rf4 {[%emt 0:00:47]} Rxf4 {[%emt 0:01:00]} 36. gxf4 {[%emt 0:00:01]} Rf5 {[%emt 0:00:23]} 0-1

[Event "FRA-ch Youth U14 2019"]
[Site "Hyeres"]
[Date "2019.04.16"]
[Round "4.4"]
[White "Razafindratsima, Timothe"]
[Black "Verhille, Elie"]
[Result "1-0"]
[ECO "C06"]
[WhiteElo "2181"]
[BlackElo "1960"]
[Annotator "NA"]
[PlyCount "91"]
[EventDate "2019.04.14"]
[EventType "swiss"]
[EventCountry "FRA"]
[SourceTitle "playchess.com"]
[Source "ChessBase"]
[SourceQuality "1"]
[TimeControl "5400+30"]

1. e4 {[%emt 0:00:00]} e6 {[%emt 0:00:00]} 2. d4 {[%emt 0:00:00]} d5 {[%emt 0:00:00]} 3. Nd2 {[%emt 0:00:12]} Nf6 {[%emt 0:00:00]} 4. e5 {[%emt 0:00:09]} Nfd7 {[%emt 0:00:00]} 5. Bd3 {[%emt 0:00:11]} c5 {[%emt 0:00:00]} 6. c3 {[%emt 0:00:09]} Nc6 {[%emt 0:00:01]} 7. Ngf3 {[%emt 0:00:09]} g6 {[%emt 0:01:00]} 8. h4 {[%emt 0:00:53]} h6 {[%emt 0:00:07]} 9. Nf1 {[%emt 0:01:42]} Bg7 {[%emt 0:00:13]} 10. Ng3 {[%emt 0:00:11]} Rb8 {[%emt 0:04:56]} 11. Qe2 {[%emt 0:05:20]} a5 {[%emt 0:05:24]} 12. h5 {[%emt 0:05:46]} g5 {[%emt 0:01:31]} 13. Be3 {[%emt 0:00:41]} a4 {[%emt 0:20:01]} 14. O-O {[%emt 0:03:49]} Qa5 {[%emt 0:03:33]} 15. Nh2 {[%emt 0:08:18]} b5 {[%emt 0:03:06]} 16. f4 {[%emt 0:12:46]} b4 {[%emt 0:17:19]} 17. fxg5 {[%emt 0:15:12]} bxc3 {[%emt 0:07:33]} 18. gxh6 {[%emt 0:14:30]} Bxe5 {[%emt 0:08:34]} 19. dxe5 {[%emt 0:04:20]} Ndxe5 {[%emt 0:01:32]} 20. bxc3 {[%emt 0:11:15]} Qxc3 {[%emt 0:02:45]} 21. Rac1 {[%emt 0:05:57]} Qxd3 {[%emt 0:00:58]} 22. Rxc5 {[%emt 0:00:01]} Qxe2 {[%emt 0:01:25]} 23. Nxe2 {[%emt 0:00:01]} Ba6 {[%emt 0:02:19]} 24. Re1 {[%emt 0:01:18]} Kd7 {[%emt 0:02:28]} 25. Nd4 {[%emt 0:09:40]} Nxd4 {[%emt 0:03:46]} 26. Bxd4 {[%emt 0:00:00]} Nd3 {[%emt 0:00:06]} 27. Bxh8 {[%emt 0:00:00]} Rxh8 {[%emt 0:00:00]} 28. Ra5 {[%emt 0:00:00]} Nxe1 {[%emt 0:00:22]} 29. Rxa6 {[%emt 0:00:00]} Rxh6 {[%emt 0:00:33]} 30. Ng4 {[%emt 0:00:00]} Rh8 {[%emt 0:00:31]} 31. h6 {[%emt 0:00:00]} Nd3 {[%emt 0:05:24]} 32. Ra7+ {[%emt 0:00:00]} Kd6 {[%emt 0:02:19]} 33. Rxf7 {[%emt 0:00:00]} Nb4 {[%emt 0:01:03]} 34. h7 {[%emt 0:00:00]} e5 {[%emt 0:01:17]} 35. Nf6 {[%emt 0:00:00]} Ke6 {[%emt 0:00:32]} 36. Rf8 {[%emt 0:00:00]} Rxf8 {[%emt 0:00:37]} 37. Ng8 {[%emt 0:00:00]} Kf7 {[%emt 0:02:04]} 38. h8=Q {[%emt 0:00:00]} Rxg8 {[%emt 0:00:05]} 39. Qxe5 {[%emt 0:00:00]} Nxa2 {[%emt 0:01:03]} 40. Qxd5+ {[%emt 0:00:00]} Kg7 {[%emt 0:00:08]} 41. Qxa2 {[%emt 0:00:00]} Rf8 {[%emt 0:00:26]} 42. Qxa4 {[%emt 0:00:00]} Rf6 {[%emt 0:00:11]} 43. g4 {[%emt 0:00:00]} Kg6 {[%emt 0:00:09]} 44. Kg2 {[%emt 0:00:00]} Kg5 {[%emt 0:00:35]} 45. Kg3 {[%emt 0:00:00]} Rc6 {[%emt 0:00:13]} 46. Qb5+ {[%emt 0:00:00]} 1-0